fUSD/lending_fUSD_20250522
["ID","MTS","AMOUNT","RATE_DAILY","PERIOD"]
[361936724,1747900248881,-969.8,0.00032876,5]
[361936725,1747900248893,-420.0,0.00032876,5]
[361936726,1747900248905,-420.0,0.00032876,5]
[361936727,1747900248918,-420.0,0.00032876,5]
[361936728,1747900248931,-420.0,0.00032876,5]
[361936730,1747900248943,-933.57,0.00032876,5]
[361936732,1747900248955,-420.0,0.00032876,5]
[361936734,1747900248967,-420.0,0.00032876,5]
[361936736,1747900248979,-1965.64,0.00032876,5]
[361936737,1747900248992,-1090.67,0.00032876,5]
[361936738,1747900249005,-420.0,0.00032876,5]
[361936739,1747900249018,-451.54,0.00032876,5]
[361936740,1747900249031,-420.0,0.00032876,5]
[361936741,1747900249043,-420.0,0.00032876,5]
[361936742,1747900249055,-420.0,0.00032876,5]
[361936743,1747900249067,-420.0,0.00032876,5]
[361936744,1747900249079,-574.33,0.00032876,5]
[361936745,1747900249091,-420.0,0.00032876,5]
[361936746,1747900249102,-420.0,0.00032876,5]
[361936747,1747900249115,-873.75,0.00032876,5]
[361936748,1747900249127,-420.0,0.00032876,5]
[361936749,1747900249140,-1225.27,0.00032876,5]
[361936750,1747900249153,-420.0,0.00032876,5]
[361936751,1747900249166,-420.0,0.00032876,5]
[361936752,1747900249178,-420.0,0.00032876,5]
[361936753,1747900249191,-420.0,0.00032876,5]
[361936755,1747900249204,-420.0,0.00032876,5]
[361936757,1747900249217,-164.27858866,0.00032876,5]
[361936759,1747900249229,-474.04,0.00032876,5]
[361936760,1747900249242,-1150.44,0.00032876,5]
[361936761,1747900249255,-420.0,0.00032876,5]
[361936762,1747900249269,-420.0,0.00032876,5]
[361936763,1747900249281,-420.0,0.00032876,5]
[361936764,1747900249294,-420.0,0.00032876,5]
[361936765,1747900249306,-422.06,0.00032876,5]
[361936766,1747900249318,-420.0,0.00032876,5]
[361936767,1747900249330,-420.0,0.00032876,5]
[361936768,1747900249342,-532.83,0.00032876,5]
[361936769,1747900249354,-421.00792927,0.00032876,5]
[361936770,1747900249366,-420.0,0.00032876,5]
[361936771,1747900249378,-420.0,0.00032876,5]
[361936772,1747900249391,-420.0,0.00032876,5]
[361936773,1747900249402,-420.0,0.00032876,5]
[361936774,1747900249414,-420.92289402,0.00032876,5]
[361936775,1747900249427,-614.89,0.00032876,5]
[361936776,1747900249440,-526.95,0.00032876,5]
[361936777,1747900249452,-420.0,0.00032876,5]
[361936778,1747900249464,-420.0,0.00032876,5]
[361936779,1747900249476,-420.0,0.00032876,5]
[361936780,1747900249489,-420.0,0.00032876,5]
[361936781,1747900249501,-522.17,0.00032876,5]
[361936782,1747900249513,-1034.02,0.00032876,5]
[361936783,1747900249524,-420.0,0.00032876,5]
[361936784,1747900249537,-420.0,0.00032876,5]
[361936785,1747900249551,-420.0,0.00032876,5]
[361936786,1747900249563,-420.0,0.00032876,5]
[361936788,1747900249575,-928.42,0.00032876,5]
[361936790,1747900249587,-420.0,0.00032876,5]
[361936793,1747900249600,-420.0,0.00032876,5]
[361936795,1747900249612,-420.0,0.00032876,5]
[361936796,1747900249626,-420.0,0.00032876,5]
[361936797,1747900249639,-1603.11,0.00032876,5]
[361936798,1747900249651,-506.21,0.00032876,5]
[361936799,1747900249663,-1777.9,0.00032876,5]
[361936800,1747900249675,-420.58625354,0.00032876,5]
[361936801,1747900249687,-802.46,0.00032876,5]
[361936802,1747900249699,-367.59273893,0.00032876,5]
[361936803,1747900249712,-420.0,0.00032876,5]
[361936804,1747900249725,-420.0,0.00032876,5]
[361936805,1747900249737,-420.0,0.00032876,5]
[361936806,1747900249749,-779.89,0.00032876,5]
[361936807,1747900249761,-979.28,0.00032876,5]
[361936808,1747900249773,-421.41283717,0.00032876,5]
[361936809,1747900249785,-397.40081873,0.00032876,5]
[361936810,1747900249797,-503.61,0.00032876,5]
[361936811,1747900249811,-420.0,0.00032876,5]
[361936812,1747900249823,-420.0,0.00032876,5]
[361936813,1747900249835,-420.0,0.00032876,5]
[361936814,1747900249847,-1196.94,0.00032876,5]
[361936815,1747900249859,-420.0,0.00032876,5]
[361936816,1747900249870,-420.0,0.00032876,5]
[361936817,1747900249883,-420.0,0.00032876,5]
[361936818,1747900249896,-421.35426115,0.00032876,5]
[361936819,1747900249908,-513.74,0.00032876,5]
[361936820,1747900249921,-627.79,0.00032876,5]
[361936821,1747900249932,-420.0,0.00032876,5]
[361936822,1747900249944,-462.86,0.00032876,5]
[361936823,1747900249957,-1131.18,0.00032876,5]
[361936824,1747900249969,-602.18,0.00032876,5]
[361936825,1747900249981,-420.0,0.00032876,5]
[361936826,1747900249993,-420.0,0.00032876,5]
[361936827,1747900250006,-420.0,0.00032876,5]
[361936828,1747900250018,-420.0,0.00032876,5]
[361936829,1747900250030,-420.0,0.00032876,5]
[361936830,1747900250042,-420.0,0.00032876,5]
[361936831,1747900250055,-422.88688508,0.00032876,5]
[361936832,1747900250067,-420.0,0.00032876,5]
[361936833,1747900250079,-420.0,0.00032876,5]
[361936834,1747900250091,-1364.8,0.00032876,5]
[361936835,1747900250102,-939.2,0.00032876,5]
[361936836,1747900250115,-490.18753792,0.00032876,5]
[361936837,1747900250127,-716.43,0.00032876,5]
[361936838,1747900250139,-420.0,0.00032876,5]
[361936839,1747900250151,-420.0,0.00032876,5]
[361936840,1747900250162,-420.0,0.00032876,5]
[361936841,1747900250174,-949.83,0.00032876,5]
[361936842,1747900250185,-420.0,0.00032876,5]
[361936843,1747900250196,-1411.59,0.00032876,5]
[361936844,1747900250208,-420.0,0.00032876,5]
[361936845,1747900250220,-421.8938802,0.00032876,5]
[361936846,1747900250232,-420.0,0.00032876,5]
[361936847,1747900250244,-420.0,0.00032876,5]
[361936848,1747900250255,-420.0,0.00032876,5]
[361936849,1747900250267,-420.0,0.00032876,5]
[361936850,1747900250279,-598.69,0.00032876,5]
[361936851,1747900250291,-420.0,0.00032876,5]
[361936852,1747900250303,-420.0,0.00032876,5]
[361936853,1747900250315,-525.93320387,0.00032876,5]
[361936854,1747900250327,-474.5,0.00032876,5]
[361936855,1747900250339,-420.0,0.00032876,5]
[361936856,1747900250351,-420.0,0.00032876,5]
[361936857,1747900250364,-420.0,0.00032876,5]
[361936858,1747900250376,-420.0,0.00032876,5]
[361936859,1747900250388,-420.0,0.00032876,5]
[361936860,1747900250400,-446.67,0.00032876,5]
[361936861,1747900250412,-420.0,0.00032876,5]
[361936862,1747900250423,-389.86468,0.00032876,5]
[361936863,1747900250436,-963.35,0.00032876,5]
[361936864,1747900250447,-1228.56,0.00032876,5]
[361936865,1747900250459,-529.81,0.00032876,5]
[361936866,1747900250471,-420.0,0.00032876,5]
[361936867,1747900250485,-734.45,0.00032876,5]
[361936868,1747900250499,-420.0,0.00032876,5]
[361936869,1747900250511,-420.0,0.00032876,5]
[361936870,1747900250523,-420.0,0.00032876,5]
[361936871,1747900250536,-420.0,0.00032876,5]
[361936872,1747900250550,-613.0,0.00032876,5]
[361936873,1747900250562,-420.0,0.00032876,5]
[361936874,1747900250573,-1000.0,0.00032876,30]
[361936875,1747900250587,-522.5,0.00032876,5]
[361936876,1747900250599,-2187.19,0.00032876,5]
[361936877,1747900250612,-567.71790037,0.00032876,5]
[361936878,1747900250624,-420.0,0.00032876,5]
[361936879,1747900250636,-420.0,0.00032876,5]
[361936880,1747900250647,-420.0,0.00032876,5]
[361936881,1747900250659,-420.0,0.00032876,5]
[361936882,1747900250671,-420.0,0.00032876,5]
[361936883,1747900250683,-1298.22,0.00032876,5]
[361936884,1747900250695,-1902.61,0.00032876,5]
[361936885,1747900250707,-420.0,0.00032876,5]
[361936886,1747900250719,-637.92,0.00032876,5]
[361936887,1747900250734,-420.0,0.00032876,5]
[361936888,1747900250746,-420.0,0.00032876,5]
[361936889,1747900250759,-557.45,0.00032876,5]
[361936890,1747900250771,-420.0,0.00032876,5]
[361936891,1747900250783,-1361.09,0.00032876,5]
[361936892,1747900250794,-420.0,0.00032876,5]
[361936893,1747900250806,-421.02163826,0.00032876,5]
[361936894,1747900250818,-420.0,0.00032876,5]
[361936895,1747900250830,-169.97128099,0.00032876,5]
[361936896,1747900250842,-547.72,0.00032876,5]
[361936897,1747900250854,-1081.87,0.00032876,5]
[361936898,1747900250866,-537.78,0.00032876,5]
[361936899,1747900250876,-420.0,0.00032876,5]
[361936900,1747900250886,-421.60884629,0.00032876,5]
[361936901,1747900250896,-420.0,0.00032876,5]
[361936902,1747900250906,-1088.41,0.00032876,5]
[361936903,1747900250916,-420.0,0.00032876,5]
[361936904,1747900250925,-420.0,0.00032876,5]
[361936905,1747900250935,-1146.97,0.00032876,5]
[361936906,1747900250945,-420.0,0.00032876,5]
[361936907,1747900250954,-2028.59,0.00032876,5]
[361936908,1747900250964,-1793.08,0.00032876,5]
[361936909,1747900250974,-420.0,0.00032876,5]
[361936910,1747900250986,-420.0,0.00032876,5]
[361936911,1747900250995,-420.0,0.00032876,5]
[361936912,1747900251005,-420.0,0.00032876,5]
[361936913,1747900251015,-420.0,0.00032876,5]
[361936914,1747900251025,-817.76,0.00032876,5]
[361936915,1747900251034,-2722.26,0.00032876,5]
[361936916,1747900251043,-420.0,0.00032876,5]
[361936917,1747900251053,-420.0,0.00032876,5]
[361936918,1747900251063,-420.0,0.00032876,5]
[361936919,1747900251073,-814.55,0.00032876,5]
[361936920,1747900251083,-420.0,0.00032876,5]
[361936921,1747900251092,-420.0,0.00032876,5]
[361936922,1747900251102,-776.15,0.00032876,5]
[361936923,1747900251111,-420.0,0.00032876,5]
[361936924,1747900251121,-420.0,0.00032876,5]
[361936925,1747900251132,-1094.8,0.00032876,5]
[361936926,1747900251771,-420.0,0.00032876,5]
[361936927,1747900251802,-1098.29,0.00032876,5]
[361936928,1747900251842,-420.0,0.00032876,5]
[361936929,1747900251872,-420.0,0.00032876,5]
[361936930,1747900251892,-492.07364649,0.00032876,5]
[361936931,1747900251903,-420.0,0.00032876,5]
[361936932,1747900251913,-500.86781544,0.00032876,5]
[361936933,1747900251922,-420.0,0.00032876,5]
[361936934,1747900251931,-420.0,0.00032876,5]
[361936935,1747900251942,-420.0,0.00032876,5]
[361936936,1747900251951,-420.0,0.00032876,5]
[361936937,1747900251961,-420.0,0.00032876,5]
[361936938,1747900251970,-420.0,0.00032876,5]
[361936939,1747900251980,-891.01,0.00032876,5]
[361936940,1747900251989,-1298.23,0.00032876,5]
[361936941,1747900251998,-420.0,0.00032876,5]
[361936942,1747900252008,-680.52,0.00032876,5]
[361936943,1747900252017,-420.0,0.00032876,5]
[361936944,1747900252026,-420.0,0.00032876,5]
[361936945,1747900252036,-420.0,0.00032876,5]
[361936946,1747900252045,-420.0,0.00032876,5]
[361936947,1747900252054,-420.0,0.00032876,5]
[361936948,1747900252063,-781.83,0.00032876,5]
[361936949,1747900252073,-1815.57,0.00032876,5]
[361936950,1747900252082,-420.0,0.00032876,5]
[361936951,1747900252093,-420.0,0.00032876,5]
[361936952,1747900252103,-420.0,0.00032876,5]
[361936953,1747900252114,-183.461167,0.00032876,5]
[361936954,1747900252124,-420.0,0.00032876,5]
[361936955,1747900252135,-420.0,0.00032876,5]
[361936956,1747900252144,-593.28,0.00032876,5]
[361936957,1747900252154,-934.77,0.00032876,5]
[361936958,1747900252163,-420.0,0.00032876,5]
[361936959,1747900252173,-420.0,0.00032876,5]
[361936960,1747900252182,-420.0,0.00032876,5]
[361936961,1747900252192,-500.0,0.00032876,5]
[361936962,1747900252201,-782.89,0.00032876,5]
[361936963,1747900252211,-994.05,0.00032876,5]
[361936964,1747900252220,-420.0,0.00032876,5]
[361936965,1747900252230,-420.0,0.00032876,5]
[361936966,1747900252240,-1053.1,0.00032876,5]
[361936967,1747900252250,-420.0,0.00032876,5]
[361936968,1747900252259,-420.0,0.00032876,5]
[361936969,1747900252269,-1368.7,0.00032876,5]
[361936970,1747900252279,-420.0,0.00032876,5]
[361936971,1747900252288,-420.0,0.00032876,5]
[361936972,1747900252299,-420.0,0.00032876,5]
[361936973,1747900252310,-820.64,0.00032876,5]
[361936974,1747900252319,-420.0,0.00032876,5]
[361936975,1747900252330,-420.0,0.00032876,5]
[361936976,1747900252340,-1699.92,0.00032876,5]
[361936977,1747900252350,-694.73,0.00032876,5]
[361936978,1747900252359,-422.64,0.00032876,5]
[361936979,1747900252368,-898.15,0.00032876,5]
[361936980,1747900252377,-420.0,0.00032876,5]
[361936981,1747900252386,-420.0,0.00032876,5]
[361936982,1747900252396,-420.0,0.00032876,5]
[361936983,1747900252405,-150.797667,0.00032876,5]
[361936984,1747900252414,-1498.93,0.00032876,5]
[361936985,1747900252423,-420.0,0.00032876,5]
[361936986,1747900252433,-420.0,0.00032876,5]
[361936987,1747900252442,-420.0,0.00032876,5]
[361936988,1747900252452,-2440.87,0.00032876,5]
[361936989,1747900252461,-510.06,0.00032876,5]
[361936990,1747900252471,-759.19,0.00032876,5]
[361936991,1747900252480,-420.0,0.00032876,5]
[361936992,1747900252489,-420.0,0.00032876,5]
[361936993,1747900252499,-593.02,0.00032876,5]
[361936994,1747900252508,-420.0,0.00032876,5]
[361936995,1747900252517,-769.8,0.00032876,5]
[361936996,1747900252527,-622.98,0.00032876,5]
[361936997,1747900252538,-819.24,0.00032876,5]
[361936998,1747900252549,-1165.5,0.00032876,5]
[361936999,1747900252559,-420.0,0.00032876,5]
[361937000,1747900252568,-420.0,0.00032876,5]
[361937001,1747900252579,-197.8351939,0.00032876,5]
[361937002,1747900252590,-1356.78,0.00032876,5]
[361937003,1747900252600,-553.18,0.00032876,5]
[361937004,1747900252610,-1661.73,0.00032876,5]
[361937005,1747900252624,-420.0,0.00032876,5]
[361937006,1747900252634,-647.91,0.00032876,5]
[361937007,1747900252645,-420.0,0.00032876,5]
[361937008,1747900252654,-420.0,0.00032876,5]
[361937009,1747900252664,-205.60860236,0.00032876,5]
[361937010,1747900252674,-731.57,0.00032876,5]
[361937011,1747900252684,-1433.12,0.00032876,5]
[361937012,1747900252694,-420.0,0.00032876,5]
[361937013,1747900252704,-1745.12,0.00032876,5]
[361937014,1747900252714,-520.13,0.00032876,5]
[361937015,1747900252725,-1455.5,0.00032876,5]
[361937016,1747900252736,-525.03,0.00032876,5]
[361937017,1747900252748,-420.0,0.00032876,5]
[361937018,1747900252758,-460.37728642,0.00032876,5]
[361937019,1747900252767,-422.59952411,0.00032876,5]
[361937020,1747900252776,-420.0,0.00032876,5]
[361937021,1747900252786,-465.67,0.00032876,5]
[361937022,1747900252795,-420.0,0.00032876,5]
[361937023,1747900252804,-514.79,0.00032876,5]
[361937024,1747900252814,-420.0,0.00032876,5]
[361937025,1747900252824,-1359.83,0.00032876,5]
[361937026,1747900252834,-421.2427124,0.00032876,5]
[361937027,1747900252845,-810.68,0.00032876,5]
[361937028,1747900252855,-420.0,0.00032876,5]
[361937029,1747900252864,-421.25010737,0.00032876,5]
[361937030,1747900252873,-420.0,0.00032876,5]
[361937031,1747900252882,-420.0,0.00032876,5]
[361937032,1747900252891,-420.0,0.00032876,5]
[361937033,1747900252900,-421.71658896,0.00032876,5]
[361937034,1747900252909,-420.0,0.00032876,5]
[361937035,1747900252918,-420.0,0.00032876,5]
[361937036,1747900252927,-420.0,0.00032876,5]
[361937037,1747900252937,-420.0,0.00032876,5]
[361937038,1747900252946,-420.0,0.00032876,5]
[361937039,1747900252956,-672.42,0.00032876,5]
[361937040,1747900252966,-420.0,0.00032876,5]
[361937041,1747900252978,-420.0,0.00032876,5]
[361937042,1747900252987,-420.0,0.00032876,5]
[361937043,1747900252997,-1150.18,0.00032876,5]
[361937044,1747900253006,-1721.2,0.00032876,5]
[361937045,1747900253015,-522.95,0.00032876,5]
[361937046,1747900253025,-758.28,0.00032876,5]
[361937047,1747900253034,-571.7,0.00032876,5]
[361937048,1747900253043,-644.77,0.00032876,5]
[361937049,1747900253052,-914.34,0.00032876,5]
[361937050,1747900253062,-1208.19,0.00032876,5]
[361937051,1747900253071,-420.0,0.00032876,5]
[361937052,1747900253081,-420.0,0.00032876,5]
[361937053,1747900253090,-1092.91,0.00032876,5]
[361937054,1747900253099,-1429.63,0.00032876,5]
[361937055,1747900253109,-420.0,0.00032876,5]
[361937056,1747900253118,-420.0,0.00032876,5]
[361937057,1747900253127,-420.0,0.00032876,5]
[361937058,1747900253136,-1517.53,0.00032876,5]
[361937059,1747900253145,-420.0,0.00032876,5]
[361937060,1747900253155,-420.0,0.00032876,5]
[361937061,1747900253164,-420.0,0.00032876,5]
[361937062,1747900253173,-423.17852939,0.00032876,5]
[361937063,1747900253183,-1140.36,0.00032876,5]
[361937064,1747900253192,-420.0,0.00032876,5]
[361937065,1747900253201,-420.0,0.00032876,5]
[361937066,1747900253210,-421.59449442,0.00032876,5]
[361937067,1747900253220,-570.44,0.00032876,5]
[361937068,1747900253229,-420.0,0.00032876,5]
[361937069,1747900253239,-420.0,0.00032876,5]
[361937070,1747900253248,-422.98523679,0.00032876,5]
[361937071,1747900253258,-420.0,0.00032876,5]
[361937072,1747900253268,-420.0,0.00032876,5]
[361937073,1747900253278,-1263.36,0.00032876,5]
[361937074,1747900253287,-705.98,0.00032876,5]
[361937075,1747900253297,-420.0,0.00032876,5]
[361937076,1747900253307,-938.28,0.00032876,5]
[361937077,1747900253316,-639.88,0.00032876,5]
[361937078,1747900253326,-1085.39,0.00032876,5]
[361937079,1747900253335,-1564.64,0.00032876,5]
[361937080,1747900253344,-779.76,0.00032876,5]
[361937081,1747900253354,-420.0,0.00032876,5]
[361937082,1747900253363,-964.6,0.00032876,5]
[361937083,1747900253373,-420.0,0.00032876,5]
[361937084,1747900253382,-420.0,0.00032876,5]
[361937085,1747900253392,-560.0,0.00032876,5]
[361937086,1747900253402,-535.36,0.00032876,5]
[361937087,1747900253411,-420.0,0.00032876,5]
[361937088,1747900253421,-420.0,0.00032876,5]
[361937089,1747900253430,-1715.91,0.00032876,5]
[361937090,1747900253440,-1182.88,0.00032876,5]
[361937091,1747900253449,-1419.77,0.00032876,5]
[361937092,1747900253459,-1173.72,0.00032876,5]
[361937093,1747900253469,-1378.21,0.00032876,5]
[361937094,1747900253479,-420.83973331,0.00032876,5]
[361937095,1747900253490,-420.0,0.00032876,5]
[361937096,1747900253499,-1029.19,0.00032876,5]
[361937097,1747900253509,-420.0,0.00032876,5]
[361937098,1747900253519,-420.0,0.00032876,5]
[361937099,1747900253529,-558.95727538,0.00032876,5]
[361937100,1747900253543,-1629.51,0.00032876,5]
[361937101,1747900253556,-448.49,0.00032876,5]
[361937102,1747900253566,-420.0,0.00032876,5]
[361937103,1747900253577,-855.97,0.00032876,5]
[361937104,1747900253587,-404.20916747,0.00032876,5]
[361937105,1747900253596,-306.58882987,0.00032876,5]
[361937106,1747900253607,-794.94,0.00032876,5]
[361937107,1747900253616,-640.66,0.00032876,5]
[361937108,1747900253625,-635.79,0.00032876,5]
[361937109,1747900253635,-420.0,0.00032876,5]
[361937110,1747900253645,-420.0,0.00032876,5]
[361937111,1747900253655,-770.8,0.00032876,5]
[361937112,1747900253664,-1278.98,0.00032876,5]
[361937113,1747900253674,-1120.46,0.00032876,5]
[361937114,1747900253683,-420.0,0.00032876,5]
[361937115,1747900253692,-836.75,0.00032876,5]
[361937116,1747900253702,-460.0,0.00032876,5]
[361937117,1747900253711,-420.0,0.00032876,5]
[361937118,1747900253721,-1543.42,0.00032876,5]
[361937119,1747900253731,-420.0,0.00032876,5]
[361937120,1747900253740,-1038.98,0.00032876,5]
[361937121,1747900253750,-507.07,0.00032876,5]
[361937122,1747900253759,-1386.11,0.00032876,5]
[361937123,1747900253769,-765.57,0.00032876,5]
[361937124,1747900253779,-420.0,0.00032876,5]
[361937125,1747900253788,-420.0,0.00032876,5]
[361937126,1747900253799,-818.63,0.00032876,5]
[361937127,1747900253811,-1369.05,0.00032876,5]
[361937128,1747900253824,-1002.24,0.00032876,5]
[361937129,1747900253834,-420.0,0.00032876,5]
[361937130,1747900253845,-583.86,0.00032876,5]
[361937131,1747900253855,-468.98,0.00032876,5]
[361937132,1747900253867,-1273.52,0.00032876,5]
[361937133,1747900253877,-613.6,0.00032876,5]
[361937134,1747900253887,-1335.75,0.00032876,5]
[361937135,1747900253898,-1551.45,0.00032876,5]
[361937136,1747900253907,-420.0,0.00032876,5]
[361937137,1747900253918,-1356.34,0.00032876,5]
[361937138,1747900253927,-939.47,0.00032876,5]
[361937139,1747900253938,-420.0,0.00032876,5]
[361937140,1747900253949,-420.0,0.00032876,5]
[361937141,1747900253958,-1477.86,0.00032876,5]
[361937142,1747900253967,-420.0,0.00032876,5]
[361937143,1747900253977,-420.0,0.00032876,5]
[361937144,1747900253986,-1140.65,0.00032876,5]
[361937145,1747900253995,-487.22,0.00032876,5]
[361937146,1747900254004,-420.0,0.00032876,5]
[361937147,1747900254013,-420.0,0.00032876,5]
[361937148,1747900254023,-420.0,0.00032876,5]
[361937149,1747900254033,-1126.14,0.00032876,5]
[361937150,1747900254042,-420.0,0.00032876,5]
[361937151,1747900254051,-420.0,0.00032876,5]
[361937152,1747900254060,-420.0,0.00032876,5]
[361937153,1747900254071,-420.0,0.00032876,5]
[361937154,1747900254081,-420.0,0.00032876,5]
[361937155,1747900254090,-2099.54,0.00032876,5]
[361937156,1747900254100,-3181.34,0.00032876,5]
[361937157,1747900254111,-1200.6,0.00032876,5]
[361937158,1747900254121,-527.33819193,0.00032876,5]
[361937159,1747900254131,-485.55,0.00032876,5]
[361937160,1747900254140,-420.0,0.00032876,5]
[361937161,1747900254150,-420.0,0.00032876,5]
[361937162,1747900254160,-1011.92,0.00032876,5]
[361937163,1747900254169,-600.35,0.00032876,5]
[361937164,1747900254178,-420.00159175,0.00032876,5]
[361937165,1747900254189,-420.0,0.00032876,5]
[361937166,1747900254199,-514.13,0.00032876,5]
[361937167,1747900254208,-420.0,0.00032876,5]
[361937168,1747900254218,-616.02,0.00032876,5]
[361937169,1747900254227,-420.0,0.00032876,5]
[361937170,1747900254237,-435.35,0.00032876,5]
[361937171,1747900254246,-428.35,0.00032876,5]
[361937172,1747900254256,-844.06,0.00032876,5]
[361937173,1747900254265,-619.38,0.00032876,5]
[361937174,1747900254274,-420.0,0.00032876,5]
[361937175,1747900254283,-420.0,0.00032876,5]
[361937176,1747900254293,-420.0,0.00032876,5]
[361937177,1747900254302,-420.0,0.00032876,5]
[361937178,1747900254312,-556.8,0.00032876,5]
[361937179,1747900254322,-420.0,0.00032876,5]
[361937180,1747900254331,-191.1700433,0.00032876,5]
[361937181,1747900254340,-420.0,0.00032876,5]
[361937182,1747900254349,-578.11,0.00032876,5]
[361937183,1747900254358,-509.55,0.00032876,5]
[361937184,1747900254369,-420.0,0.00032876,5]
[361937185,1747900254378,-434.7,0.00032876,5]
[361937186,1747900254388,-420.0,0.00032876,5]
[361937187,1747900254397,-2801.86,0.00032876,5]
[361937188,1747900254406,-420.0,0.00032876,5]
[361937189,1747900254416,-1321.85,0.00032876,5]
[361937190,1747900254426,-685.44,0.00032876,5]
[361937191,1747900254435,-420.0,0.00032876,5]
[361937192,1747900254445,-420.0,0.00032876,5]
[361937193,1747900254454,-420.0,0.00032876,5]
[361937194,1747900254464,-420.0,0.00032876,5]
[361937195,1747900254474,-1267.73,0.00032876,5]
[361937196,1747900254483,-972.37,0.00032876,5]
[361937197,1747900254493,-421.39677691,0.00032876,5]
[361937198,1747900254502,-495.35,0.00032876,5]
[361937199,1747900254512,-1122.89,0.00032876,5]
[361937200,1747900254521,-568.91,0.00032876,5]
[361937201,1747900254530,-512.15,0.00032876,5]
[361937202,1747900254540,-2044.54,0.00032876,5]
[361937203,1747900254551,-631.92,0.00032876,5]
[361937204,1747900254561,-617.8,0.00032876,5]
[361937205,1747900254570,-5037.42,0.00032876,2]
[361937206,1747900254579,-420.0,0.00032876,5]
[361937207,1747900254590,-511.77,0.00032876,5]
[361937208,1747900254599,-420.0,0.00032876,5]
[361937209,1747900254608,-1220.66,0.00032876,5]
[361937210,1747900254618,-420.0,0.00032876,5]
[361937211,1747900254628,-839.96,0.00032876,5]
[361937212,1747900254638,-420.0,0.00032876,5]
[361937213,1747900254647,-420.0,0.00032876,5]
[361937214,1747900254656,-420.0,0.00032876,5]
[361937215,1747900254666,-1377.72,0.00032876,5]
[361937216,1747900254675,-420.0,0.00032876,5]
[361937217,1747900254683,-420.0,0.00032876,5]
[361937218,1747900254693,-422.3382747,0.00032876,5]
[361937219,1747900254703,-421.95337751,0.00032876,5]
[361937220,1747900254712,-2036.71,0.00032876,5]
[361937221,1747900254721,-1017.74,0.00032876,5]
[361937222,1747900254730,-420.0,0.00032876,5]
[361937223,1747900254741,-420.0,0.00032876,5]
[361937224,1747900254750,-428.43,0.00032876,5]
[361937225,1747900254760,-213.20111626,0.00032876,5]
[361937226,1747900254769,-420.0,0.00032876,5]
[361937227,1747900254778,-1055.86,0.00032876,5]
[361937228,1747900254787,-420.0,0.00032876,5]
[361937229,1747900254797,-420.5848344,0.00032876,5]
[361937230,1747900254806,-687.21,0.00032876,5]
[361937231,1747900254815,-420.0,0.00032876,5]
[361937232,1747900254825,-1029.99,0.00032876,5]
[361937233,1747900254835,-420.0,0.00032876,5]
[361937234,1747900254844,-525.35,0.00032876,5]
[361937235,1747900254853,-420.0,0.00032876,5]